Cogmind - Beta 13 @@@ ROGUE MODE // 2024.04.28 @ 17:52:09 Player: Faunarr Result: Smashed by cave-in Performance ------------- Evolutions (0) 0 Regions Visited (1) 200 Robots Destroyed (12) 60 Value Destroyed (278) 278 Prototype IDs (0) 0 Alien Tech Used (0) 0 Bonus (0) 0 TOTAL SCORE: 538 Bonus ------- None Cogmind --------- Core Integrity 0/250 Matter 118/300 Energy 249/250 System Corruption 11% Temperature Cool (0) Movement Rolling (175) Ox5 Location -10/Materials Parts ------- > --- POWER (1) -------- Ion Engine > --- PROPULSION (2) --- Compact Wheel > --- UTILITY (2) ------ Huge Storage Unit > --- WEAPON (2) ------- Assault Rifle Mining Claw > --- INVENTORY (25) --- Ion Engine Ion Engine Light Ion Engine Large Storage Unit Sensor Array Sensor Array Improved Terrain Scanner Seismic Detector Medium Laser Mini Grenade Launcher Hammer Peak State ------------ > --- POWER ------------ Ion Engine > --- PROPULSION ------- Light Treads Light Treads > --- UTILITY ---------- Medium Storage Unit Seismic Detector > --- WEAPON ----------- Medium Laser Medium Laser > --- INVENTORY -------- Ion Engine Light Ion Engine Compact Wheel Small Storage Unit Sensor Array Sensor Array Improved Terrain Scanner Assault Rifle [Rating: 8] Favorites ----------- Power Ion Engine Engine Ion Engine Propulsion Light Treads Treads Light Treads Wheel Compact Wheel Utility Structural Scanner Device Structural Scanner Storage Medium Storage Unit Weapon Medium Laser Energy Gun Medium Laser Ballistic Gun Assault Rifle Launcher Mini Grenade Launcher Impact Weapon Hammer Slashing Weapon Mining Claw Build | -11 -10 ------- Run | Yrd Mat Slots Evolved . | . . Power . | . . Propulsion . | . . Utility . | . . Weapon . | . . Parts Attached 22 | 7 15 Power 4 | 1 3 Engine 4 | 1 3 Core . | . . Reactor . | . . Propulsion 3 | 2 1 Treads 2 | 2 . Leg . | . . Wheel 1 | . 1 Hover . | . . Flight . | . . Utility 6 | 2 4 Device 2 | 1 1 Storage 4 | 1 3 Processor . | . . Hackware . | . . Protection . | . . Artifact . | . . Weapon 9 | 2 7 Energy Gun 2 | 2 . Energy Cannon . | . . Ballistic Gun 2 | . 2 Ballistic Cannon . | . . Launcher 1 | . 1 Special Weapon . | . . Impact Weapon 1 | . 1 Slashing Weapon 3 | . 3 Piercing Weapon . | . . Special Melee Weapon . | . . Unidentified Prototypes . | . . Parts Lost 4 | . 4 Power 1 | . 1 Propulsion 2 | . 2 Utility 1 | . 1 Weapon . | . . Highest Loss Streak 2 | . 2 To Critical Strikes . | . . Average Slot Usage (%) 98 | . 98 Engine 13 | . 13 Treads 25 | . 25 Wheel 1 | . 1 Device 13 | . 13 Storage 14 | . 14 Energy Gun 7 | . 7 Ballistic Gun 9 | . 9 Slashing Weapon 9 | . 9 Naked Turns . | . . Heaviest Build 90 | 13 90 Greatest Support 40 | 40 40 Greatest Overweight (x) 5 | . 5 Average Overweight (x) . | . . Largest Inventory Capacity 25 | 8 25 Average Capacity 14 | 7 15 Most Carried 12 | 4 12 Average Carried 9 | 3 9 Final Capacity 25 | 8 25 Final Carried 11 | 4 11 Class Distribution -------------------- 100% | Mutant Dominant Class ---------------- Mutant | -10/Materials Resources | -11 -10 ----------- Run | Yrd Mat Matter Collected 292 | 270 22 Remotely . | . . Salvage Created 388 | 87 301 Parts 21 | 4 17 Haulers Intercepted . | . . Recyclers Shooed 1 | 1 . Parts Field Recycled . | . . Retrieved Matter . | . . Parts Self-Destructed . | . . Prevented . | . . Kills | -11 -10 ------- Run | Yrd Mat Combat Hostiles Destroyed 9 | . 9 Guns 7 | . 7 AOE 2 | . 2 Classes Destroyed 5 | 2 3 Builder 1 | . 1 Tunneler 1 | 1 . Recycler 1 | 1 . Swarmer 3 | . 3 Grunt 6 | . 6 Best Kill Streak 3 | 1 3 Combat Bots Only 3 | . 3 Max Kills in Single Turn 2 | 1 2 Gunslinging . | . . Exploded 2 | . 2 Melee . | . . Uniques/NPCs Destroyed . | . . Combat | -11 -10 -------- Run | Yrd Mat Hostile Shots Fired 64 | . 64 Missed 15 | . 15 Damage Taken 1042 | . 1042 Core 259 | . 259 Absorbed by Shields . | . . Core Remaining (%) 100 | 100 . Volleys Fired 34 | 5 29 Largest 2 | 2 2 Hottest 100 | 100 100 Shots Fired 63 | 10 53 Gun 62 | 10 52 Cannon . | . . Launcher 1 | . 1 Special . | . . Kinetic 14 | . 14 Thermal 48 | 10 38 Explosive 1 | . 1 Electromagnetic . | . . Robot Hit Streak 11 | 3 11 Robot Miss Streak 3 | 2 3 Penetration Max . | . . Secondary Targets 1 | . 1 Max Gunslinging Chain 1 | . 1 Shots Hit Robots 40 | 5 35 Core Hits 19 | 3 16 Critical Kills . | . . Critical Parts Destroyed . | . . Critical Strikes 4 | 1 3 Burn 4 | 1 3 Melee Attacks 123 | . 123 Impact 15 | . 15 Slashing 108 | . 108 Piercing . | . . Sneak Attacks 1 | . 1 Combat Hostiles . | . . Follow-up Attacks . | . . Damage Inflicted 640 | 63 577 Guns 490 | 63 427 Cannons . | . . Explosions 100 | . 100 Melee 46 | . 46 Ramming 4 | . 4 Kinetic 90 | . 90 Thermal 400 | 63 337 Explosive 100 | . 100 Electromagnetic . | . . Impact . | . . Slashing 46 | . 46 Piercing . | . . Highest Corruption 11 | . 11 Average Corruption 2 | . 2 Corruption Purged . | . . Corruption Blocked . | . . Effects 18 | . 18 Message Errors 4 | . 4 Matter Fused 3 | . 3 Heat Flow Errors 2 | . 2 Energy Discharges 3 | . 3 Data Loss (minor) 2 | . 2 Misfires 2 | . 2 Alerts 1 | . 1 Weapon Failures 1 | . 1 Overload Shots . | . . Overflow Damage . | . . Projectiles . | . . Explosions . | . . Melee . | . . Knockbacks . | . . Impact . | . . Kinetic . | . . Secondary . | . . Self-Inflicted Damage 17 | . 17 Shots 1 | . 1 Rammed 2 | . 2 Targets Rammed 2 | . 2 Kicked . | . . Crushed . | . . Highest Temperature 266 | 156 266 Average Temperature 80 | 67 83 Received Heat Transfer 210 | . 210 Siege Activations . | . . Robots Corrupted . | . . Combat Hostiles . | . . Parts Fried . | . . Impact Corruptions . | . . Robots Melted . | . . Combat Hostiles . | . . Parts Melted 2 | . 2 Heat Transferred 1480 | 259 1221 Parts Sabotaged . | . . Parts Stolen . | . . Parts Stripped . | . . Power Chain Reactions . | . . Alert | -11 -10 ------- Run | Yrd Mat Peak Influence 136 | 10 136 Initial 6 | . 6 Average 39 | 6 42 Maximum Alert Level . | . . Low Security (%) 100 | 100 100 Level 1 . | . . Level 2 . | . . Level 3 . | . . Level 4 . | . . Level 5 . | . . High Security . | . . Max Security . | . . Squads Dispatched 1 | . 1 Investigation 1 | . 1 Extermination . | . . Reinforcement . | . . Assault . | . . Garrison . | . . Intercept . | . . Searches Triggered . | . . Construction Impeded . | . . Haulers Reinforced . | . . Active Scanning Responses . | . . Cargo Convoy Interrupts . | . . Stealth | -11 -10 --------- Run | Yrd Mat Distress Signals 3 | . 3 Communications Jammed . | . . Distress Signals . | . . Times Spotted 21 | . 21 Peak Tracking Total 5 | . 5 Tactical Retreats 2 | . 2 Traps | -11 -10 ------- Run | Yrd Mat Traps Triggered 2 | . 2 Indirectly . | . . Trap Hack Attempts . | . . Triggered . | . . Disarmed . | . . Reprogrammed . | . . Reused . | . . Traps Extracted . | . . Installed . | . . Triggered . | . . Machines | -11 -10 ---------- Run | Yrd Mat Machines Disabled . | . . Max in Single Turn . | . . Machines Repaired . | . . Machines Dismantled . | . . Machines Sabotaged . | . . Overloaded Fab Kills . | . . Hacking | -11 -10 --------- Run | Yrd Mat Machines Accessed 1 | . 1 Terminals 1 | . 1 Fabricators . | . . Repair Stations . | . . Recycling Units . | . . Scanalyzers . | . . Garrison Access . | . . Total Hacks 2 | . 2 Successful 1 | . 1 Failed 1 | . 1 Catastrophic . | . . Database Lockouts . | . . Manual . | . . Terminals 2 | . 2 Fabricators . | . . Repair Stations . | . . Recycling Units . | . . Scanalyzers . | . . Garrison Access . | . . Terminal Hacks 1 | . 1 Zone Layout 1 | . 1 Fabricator Hacks . | . . Repair Station Hacks . | . . Recycling Unit Hacks . | . . Scanalyzer . | . . Garrison Access Hacks . | . . Unauthorized Hacks . | . . Terminals . | . . Fabricators . | . . Repair Stations . | . . Recycling Units . | . . Scanalyzers . | . . Garrison Access . | . . Data Cores Recovered . | . . Used . | . . Hacking Detections . | . . Full Trace Events . | . . Feedback Events . | . . Feedback Blocked . | . . Robot Schematics Acquired . | . . Robots Built . | . . Authchips . | . . Time . | . . Total Robot Build Rating . | . . Part Schematics Acquired . | . . Parts Built . | . . Authchips . | . . Time . | . . Total Part Build Rating . | . . Parts Repaired . | . . Time . | . . Parts Recycled . | . . Recycled Matter . | . . Retrieved Matter . | . . Retrieved Components . | . . Parts Scanalyzed . | . . Part Schematics Acquired . | . . Parts Damaged . | . . Bothacking | -11 -10 ------------ Run | Yrd Mat Used RIF Installer . | . . Robots Hacked . | . . Non-combat . | . . Combat . | . . Robot Hacks Applied . | . . Relay Couplers Released . | . . Fabnet Peak Effective % . | . . Robots Rewired . | . . Allies Hacked . | . . Hacks Repelled . | . . Allies | -11 -10 -------- Run | Yrd Mat Total Allies . | . . Largest Group . | . . Highest-Rated Group . | . . Highest-Rated Ally . | . . Total Orders . | . . Ally Attacks . | . . Total Damage . | . . Kills . | . . Allies Corrupted . | . . Allies Melted . | . . Intel | -11 -10 ------- Run | Yrd Mat Robot Analysis Total . | . . Derelict Logs Recovered . | . . Drone Launches . | . . Drone Recoveries . | . . Exploration | -11 -10 ------------- Run | Yrd Mat Turns Passed 2001 | 197 1804 Spaces Moved 811 | 107 704 Core 3 | 3 . Treads 764 | 104 660 Legs . | . . Wheels 44 | . 44 Hover . | . . Flight . | . . Fastest Speed 50 | 50 160 Average Speed 180 | 156 184 Slowest Speed 480 | 160 480 Overloaded Moves . | . . Propulsion Burnouts . | . . Robots Hopped . | . . Cave-ins Triggered 3 | . 3 Exploration Rate (%) 50 | 6 95 Regions Visited 1 Branch Regions . Pre-discovered Areas . | . . Known Exits Taken . | . . Unknown Exits Taken 1 | 1 . Scrap Searched . | . . Spaces Dug 87 | . 87 Terrain Destroyed 96 | . 96 Melee 87 | . 87 Projectile . | . . AOE 9 | . 9 Terrain Rammed . | . . Walls Destroyed . | . . Machines Disabled . | . . Actions | -11 -10 --------- Run | Yrd Mat Total 1035 | 124 911 Wait 29 | . 29 Move 807 | 106 701 Hop . | . . Pick Up 13 | 6 7 Fast Attach 5 | 5 . Attach 4 | 2 2 Detach . | . . Swap 13 | . 13 Drop 3 | . 3 Fire 34 | 5 29 Melee 123 | . 123 Ram . | . . Kick . | . . Crush 2 | . 2 Escape Stasis 2 | . 2 Rewire . | . . Trap . | . . Miscellaneous . | . . Route ------- -11/Scrapyard -10/Materials (discovered 5 exits: [*Mat x3] / [*Min x2]) History --------- Turn | Location | Event 23 | -11/Scrapyard | Discovered new exit (range 15) 198 | -11/Scrapyard | Entered Materials 278 | -10/Materials | Discovered new exit (range 12) 333 | -10/Materials | Build established: Mutant 396 | -10/Materials | Discovered new exit (range 7) 508 | -10/Materials | Discovered new exit (range 3) 1034 | -10/Materials | Discovered new exit (range 3) 1343 | -10/Materials | Discovered new exit (range 12) 1737 | -10/Materials | Crushed by falling debris 1738 | -10/Materials | Core integrity fell below 50% 1983 | -10/Materials | Crushed by falling debris 1984 | -10/Materials | Core integrity fell below 20% 1984 | -10/Materials | System corruption reached 10% 2002 | -10/Materials | Crushed by falling debris 2002 | -10/Materials | Smashed by cave-in Last Messages --------------- 01851_ G-34 Mercenary destroyed. 01853_ System corrupted: IFF burst signal emitted. 01856_ The unstable cave ceiling collapses. 01859_ Acquired 2 matter. 01866_ R-06 Scavenger collects Heat Sink. 01870_ R-06 Scavenger collects Sml. Laser. 01874_ R-06 Scavenger collects Ion Engine. 01890_ System corrupted: Matter fused (-9). 01939_ System corrupted: FCS attempts to trigger Assault Rifle. 01939_ System corrupted: Assault Rifle misfires. 01947_ The unstable cave ceiling collapses. 01983_ Crushed by falling debris. 01983_ Lgt. Treads destroyed. 01983_ System corrupted by crushing effect (+4). 01983_ Structural Scanner destroyed. 01983_ System corrupted by crushing effect (+3). 01996_ The unstable cave ceiling collapses. 02002_ Crushed by falling debris. Map ----- +----------------------------------------------------+ | | | | | | | | | | | | | | | | | | | | | | | | | | | | | | | | | | | | | | | | | | | | | | | ?#######################?????????????????????????? | | ###########################??????????????????????? | | ### #### ### # @#??????????????????????? | | ## !! "" ##### #######??????????????????????? | | ## !! "" ##### ########????????????????????????? | | ## ! T" " #########?#####??????????????????? | | "# "" #### ################???????????####### | | ## "" ### ##################??????????####### | | ## ########## ###????########" | | ## ###### # """ """ ###????######### "" | | ## ! ###### < # """ R" ###????##[[ #### "" | | ######+######### # """ """ ###????##[[ # "" | | ##### + ###????##[[ # | | # [ ###????##[[ + "" | | # ###????##!! # "" | | ^ # ##?????##!! # "" | | ############?????###### # | | ^ ######################?????###### # | | ############????????????######### # | | ^ ^ """ #########???????????????######### ##### | | """ #########???????????????##]]]][[# # | | """ ###???????????????## ]]][[# # """ | | ###???????########## # # """ | | #####?????############ # + """ | | #+#####+######+######????### ##### # | | # ######### + # [ | | # #########= ########## # | +----------------------------------------------------+ Best States ------------- Heat Dissipation 25 Energy Generation 10 Energy Capacity 250 Matter Stores 300 Matter Capacity 300 Sight Range 16 Terrain Scan Density 10 Evasion (%) 40 Recoil Reduction 2 Item Schematics ----------------- None Robot Schematics ------------------ None Fabricated ------------ Nothing Alien Tech Used ----------------- None Achievements -------------- None Challenges ------------ None Game ------ Seed DroneDecoyVibroblade Manual? 0 Play Time 00:14:50 Cumulative 19.2 hours Start 2024.04.28 @ 17:38:41 End 2024.04.28 @ 17:52:09 Sessions 1 Manual Loads 0 Difficulty Rogue Special Mode None Game No. 38 Rogue 38 Adventurer 0 Explorer 0 Win Type - Total 0 Types 0/0/0/0/0/0/0/0/0 Lore% 18 Gallery% 25 Achievement% 24 Wizard Run 0 Options --------- Layout 1 ASCII 0 Keyboard 0 Movement Vi Keybinds 0 Fullscreen 2 Font 24/Smallcaps Map View 50x35 Zoom Use 0% Tactical HUD 1 Map Filters NONE Filters NONE Steam 1 RUN: f863febf-a780-49b7-acf7-1cbc3b04c6ff